[Event "*** Titled Tuesday Blitz"]
[Site "Chess.com"]
[Date "2020.05.19"]
[Round "8"]
[White "lamomiablanca"]
[Black "ErikRonka"]
[Result "1-0"]
[WhiteElo "2200"]
[BlackElo "2362"]
[TimeControl "180+1"]
[EndTime "13:38:12 PDT"]
[Termination "lamomiablanca won by checkmate"]

1. e4 {[%clk 0:03:00.9]} 1... g6 {[%clk 0:02:57.3]} 2. d4 {[%clk 0:02:59.6]}
2... Bg7 {[%clk 0:02:57.2]} 3. h4 {[%clk 0:02:59.6]} 3... h6 {[%clk 0:02:55.6]}
4. h5 {[%clk 0:02:58.8]} 4... g5 {[%clk 0:02:54.5]} 5. Nc3 {[%clk 0:02:56.5]}
5... d6 {[%clk 0:02:52.7]} 6. f4 {[%clk 0:02:55]} 6... gxf4 {[%clk 0:02:50.9]}
7. Bxf4 {[%clk 0:02:54.6]} 7... Nc6 {[%clk 0:02:51]} 8. Nf3 {[%clk 0:02:52.6]}
8... Bg4 {[%clk 0:02:50.6]} 9. d5 {[%clk 0:02:47.4]} 9... Ne5 {[%clk 0:02:43.3]}
10. Be2 {[%clk 0:02:45.6]} 10... Bxf3 {[%clk 0:02:40.4]} 11. gxf3 {[%clk
0:02:43.1]} 11... e6 {[%clk 0:02:33.5]} 12. Qd2 {[%clk 0:02:14.2]} 12... Bf6
{[%clk 0:02:30.3]} 13. O-O-O {[%clk 0:02:10.6]} 13... Bg5 {[%clk 0:02:29.8]} 14.
Kb1 {[%clk 0:02:09.9]} 14... Bxf4 {[%clk 0:02:29.4]} 15. Qxf4 {[%clk 0:02:10]}
15... Qg5 {[%clk 0:02:30]} 16. Qh2 {[%clk 0:02:08.6]} 16... Qe7 {[%clk
0:02:13.4]} 17. f4 {[%clk 0:02:07]} 17... Nd7 {[%clk 0:02:12.9]} 18. Nb5 {[%clk
0:01:57.7]} 18... Nc5 {[%clk 0:02:11.1]} 19. e5 {[%clk 0:01:47.2]} 19... a6
{[%clk 0:02:10.9]} 20. exd6 {[%clk 0:01:46.5]} 20... cxd6 {[%clk 0:02:10.5]} 21.
Nd4 {[%clk 0:01:38.1]} 21... Nf6 {[%clk 0:02:06.2]} 22. dxe6 {[%clk 0:01:36.4]}
22... fxe6 {[%clk 0:02:05.5]} 23. Bc4 {[%clk 0:01:26.7]} 23... O-O-O {[%clk
0:01:57.1]} 24. Rhe1 {[%clk 0:01:25]} 24... d5 {[%clk 0:01:54.8]} 25. Bd3 {[%clk
0:01:12.6]} 25... Qd6 {[%clk 0:01:50.7]} 26. Qh3 {[%clk 0:01:02.2]} 26... Rde8
{[%clk 0:01:43.6]} 27. Bg6 {[%clk 0:01:01.6]} 27... Re7 {[%clk 0:01:38.9]} 28.
Qc3 {[%clk 0:01:01.4]} 28... Kb8 {[%clk 0:01:19.1]} 29. Nb3 {[%clk 0:00:51.2]}
29... Ncd7 {[%clk 0:00:58.3]} 30. Nd4 {[%clk 0:00:41.6]} 30... Rc8 {[%clk
0:00:45.1]} 31. Qe3 {[%clk 0:00:41.1]} 31... Nf8 {[%clk 0:00:43.2]} 32. Nf5
{[%clk 0:00:39.6]} 32... Qc7 {[%clk 0:00:23.2]} 33. Nxe7 {[%clk 0:00:38.6]}
33... Qxe7 {[%clk 0:00:24.1]} 34. Qe5+ {[%clk 0:00:37.2]} 34... Ka8 {[%clk
0:00:23.4]} 35. f5 {[%clk 0:00:37.4]} 35... N6d7 {[%clk 0:00:22.4]} 36. Qxd5
{[%clk 0:00:33.1]} 36... Rc5 {[%clk 0:00:22.4]} 37. Qd6 {[%clk 0:00:24.6]} 37...
Qf6 {[%clk 0:00:17.8]} 38. fxe6 {[%clk 0:00:21.8]} 38... Rb5 {[%clk 0:00:17.7]}
39. b3 {[%clk 0:00:19.2]} 39... Rb6 {[%clk 0:00:16.2]} 40. Qd4 {[%clk
0:00:14.3]} 40... Rxe6 {[%clk 0:00:08.3]} 41. Qxf6 {[%clk 0:00:10.3]} 41... Rxf6
{[%clk 0:00:09.2]} 42. Re8+ {[%clk 0:00:09.2]} 42... Ka7 {[%clk 0:00:09.5]} 43.
Rd8 {[%clk 0:00:09.2]} 43... Ne5 {[%clk 0:00:09]} 44. R8d6 {[%clk 0:00:06.4]}
44... Rf2 {[%clk 0:00:07.8]} 45. Re6 {[%clk 0:00:05.2]} 45... Ng4 {[%clk
0:00:07.4]} 46. Ree1 {[%clk 0:00:05]} 46... Nf6 {[%clk 0:00:04.2]} 47. Bd3
{[%clk 0:00:04.9]} 47... N8d7 {[%clk 0:00:02.9]} 48. Rf1 {[%clk 0:00:05.2]}
48... Rh2 {[%clk 0:00:03.4]} 49. Rf5 {[%clk 0:00:04.9]} 49... Rh4 {[%clk
0:00:03]} 50. Rdf1 {[%clk 0:00:05]} 50... Ng4 {[%clk 0:00:03]} 51. Rf7 {[%clk
0:00:04.9]} 51... Ne3 {[%clk 0:00:03.2]} 52. Rxd7 {[%clk 0:00:04]} 52... Nxf1
{[%clk 0:00:03.9]} 53. Bxf1 {[%clk 0:00:04.9]} 53... Rh1 {[%clk 0:00:04.4]} 54.
Rd1 {[%clk 0:00:05]} 54... Rxh5 {[%clk 0:00:05]} 55. Kb2 {[%clk 0:00:05.2]}
55... Rg5 {[%clk 0:00:05.5]} 56. Bd3 {[%clk 0:00:05.6]} 56... h5 {[%clk
0:00:06.4]} 57. Rh1 {[%clk 0:00:06]} 57... h4 {[%clk 0:00:07]} 58. Rxh4 {[%clk
0:00:06.2]} 58... Rg2 {[%clk 0:00:07.9]} 59. Rc4 {[%clk 0:00:06.8]} 59... a5
{[%clk 0:00:07.9]} 60. Be4 {[%clk 0:00:07.3]} 60... b5 {[%clk 0:00:08.1]} 61.
Rc7+ {[%clk 0:00:06.1]} 61... Kb6 {[%clk 0:00:08]} 62. Rb7+ {[%clk 0:00:06.5]}
62... Kc5 {[%clk 0:00:08.9]} 63. Bxg2 {[%clk 0:00:07.1]} 63... Kb4 {[%clk
0:00:09.7]} 64. a3+ {[%clk 0:00:06.8]} 64... Kc5 {[%clk 0:00:09.5]} 65. b4+
{[%clk 0:00:07.7]} 65... axb4 {[%clk 0:00:07.2]} 66. axb4+ {[%clk 0:00:08.6]}
66... Kxb4 {[%clk 0:00:08.1]} 67. Bf1 {[%clk 0:00:09.3]} 67... Ka5 {[%clk
0:00:07.4]} 68. Rxb5+ {[%clk 0:00:09.9]} 68... Ka4 {[%clk 0:00:08.3]} 69. Rb3
{[%clk 0:00:08.3]} 69... Ka5 {[%clk 0:00:08.2]} 70. Bg2 {[%clk 0:00:08.7]} 70...
Ka4 {[%clk 0:00:08.2]} 71. c4 {[%clk 0:00:09.2]} 71... Ka5 {[%clk 0:00:08.3]}
72. c5 {[%clk 0:00:09.5]} 72... Ka4 {[%clk 0:00:08.9]} 73. c6 {[%clk 0:00:09.8]}
73... Ka5 {[%clk 0:00:09.3]} 74. c7 {[%clk 0:00:09.9]} 74... Ka4 {[%clk
0:00:08.1]} 75. c8=Q {[%clk 0:00:09.9]} 75... Ka5 {[%clk 0:00:07.5]} 76. Qa8#
{[%clk 0:00:09.8]} 1-0

[Event "*** Titled Tuesday Blitz"]
[Site "Chess.com"]
[Date "2020.05.19"]
[Round "8"]
[White "Kildepiotr"]
[Black "pastouche06"]
[Result "1/2-1/2"]
[WhiteElo "2572"]
[BlackElo "2461"]
[TimeControl "180+1"]
[EndTime "13:38:19 PDT"]
[Termination "Game drawn by repetition"]

1. Nf3 {[%clk 0:03:00.9]} 1... d5 {[%clk 0:02:54.7]} 2. g3 {[%clk 0:03:00.9]}
2... Nf6 {[%clk 0:02:52]} 3. Bg2 {[%clk 0:03:00.4]} 3... c5 {[%clk 0:02:52.3]}
4. O-O {[%clk 0:03:00]} 4... Nc6 {[%clk 0:02:52.4]} 5. d3 {[%clk 0:02:59.8]}
5... g6 {[%clk 0:02:50.8]} 6. Nbd2 {[%clk 0:02:59.6]} 6... Bg7 {[%clk
0:02:50.1]} 7. e4 {[%clk 0:02:59.9]} 7... e6 {[%clk 0:02:49.9]} 8. c3 {[%clk
0:02:59.3]} 8... O-O {[%clk 0:02:49.5]} 9. Qe2 {[%clk 0:02:58.6]} 9... b6 {[%clk
0:02:45.9]} 10. Rd1 {[%clk 0:02:40.7]} 10... a5 {[%clk 0:02:40.8]} 11. Nf1
{[%clk 0:02:37.3]} 11... Ba6 {[%clk 0:02:37]} 12. e5 {[%clk 0:02:37.3]} 12...
Nd7 {[%clk 0:02:37]} 13. Bf4 {[%clk 0:02:37.2]} 13... f6 {[%clk 0:02:25.6]} 14.
exf6 {[%clk 0:02:36.6]} 14... Qxf6 {[%clk 0:02:26]} 15. Re1 {[%clk 0:02:26.5]}
15... Rae8 {[%clk 0:02:09.6]} 16. Bg5 {[%clk 0:02:15.2]} 16... Qf7 {[%clk
0:02:09.1]} 17. Qd2 {[%clk 0:02:09]} 17... e5 {[%clk 0:01:59.9]} 18. h4 {[%clk
0:02:05.1]} 18... h6 {[%clk 0:01:43.2]} 19. Bxh6 {[%clk 0:01:55.6]} 19... Bxh6
{[%clk 0:01:44.1]} 20. Qxh6 {[%clk 0:01:55.6]} 20... Bxd3 {[%clk 0:01:44.7]} 21.
Rad1 {[%clk 0:01:43.7]} 21... e4 {[%clk 0:01:44]} 22. Ng5 {[%clk 0:01:35.4]}
22... Qg7 {[%clk 0:01:44.1]} 23. Qxg7+ {[%clk 0:01:31.4]} 23... Kxg7 {[%clk
0:01:45]} 24. Bh3 {[%clk 0:01:22.1]} 24... Nde5 {[%clk 0:01:37.5]} 25. Nh2
{[%clk 0:01:20.5]} 25... Rf6 {[%clk 0:01:26.6]} 26. Ng4 {[%clk 0:01:15.7]} 26...
Nxg4 {[%clk 0:01:25.3]} 27. Bxg4 {[%clk 0:01:15]} 27... Ne5 {[%clk 0:01:25.8]}
28. Be2 {[%clk 0:01:12.1]} 28... Bxe2 {[%clk 0:00:40.2]} 29. Rxe2 {[%clk
0:01:11.8]} 29... Rd6 {[%clk 0:00:40.7]} 30. Nxe4 {[%clk 0:00:59.4]} 30... Nf3+
{[%clk 0:00:31.2]} 31. Kg2 {[%clk 0:00:59.1]} 31... Rde6 {[%clk 0:00:27.9]} 32.
Kxf3 {[%clk 0:00:39.4]} 32... dxe4+ {[%clk 0:00:28.1]} 33. Kg2 {[%clk
0:00:35.5]} 33... Rf8 {[%clk 0:00:24.9]} 34. Rd5 {[%clk 0:00:32.1]} 34... Rf3
{[%clk 0:00:20.9]} 35. Rxe4 {[%clk 0:00:25.2]} 35... Rxg3+ {[%clk 0:00:15.6]}
36. fxg3 {[%clk 0:00:24.5]} 36... Rxe4 {[%clk 0:00:16.5]} 37. Kf3 {[%clk
0:00:21.5]} 37... Re6 {[%clk 0:00:17.1]} 38. a4 {[%clk 0:00:20.2]} 38... Kf6
{[%clk 0:00:14.9]} 39. g4 {[%clk 0:00:19.2]} 39... Kf7 {[%clk 0:00:14.8]} 40. h5
{[%clk 0:00:18.2]} 40... gxh5 {[%clk 0:00:14.1]} 41. Rxh5 {[%clk 0:00:18]} 41...
Kg6 {[%clk 0:00:12.2]} 42. Rd5 {[%clk 0:00:16.9]} 42... Kf6 {[%clk 0:00:11.3]}
43. Kf4 {[%clk 0:00:17.1]} 43... Kg6 {[%clk 0:00:11.3]} 44. Re5 {[%clk
0:00:15.4]} 44... Rf6+ {[%clk 0:00:10.2]} 45. Ke4 {[%clk 0:00:14.4]} 45... Kg7
{[%clk 0:00:10.7]} 46. Kd5 {[%clk 0:00:13.5]} 46... Rf2 {[%clk 0:00:10.7]} 47.
Kc6 {[%clk 0:00:11.4]} 47... Rxb2 {[%clk 0:00:09.1]} 48. Re7+ {[%clk 0:00:11.3]}
48... Kf6 {[%clk 0:00:08.7]} 49. Rb7 {[%clk 0:00:12.2]} 49... Rb3 {[%clk
0:00:08.3]} 50. Rxb6 {[%clk 0:00:11.7]} 50... Rxc3 {[%clk 0:00:08.7]} 51. Kb5+
{[%clk 0:00:11.8]} 51... Ke5 {[%clk 0:00:07.7]} 52. Kxa5 {[%clk 0:00:11.8]}
52... Kd4 {[%clk 0:00:07.9]} 53. g5 {[%clk 0:00:11.5]} 53... Rg3 {[%clk
0:00:07.5]} 54. g6 {[%clk 0:00:11.7]} 54... c4 {[%clk 0:00:08]} 55. Kb5 {[%clk
0:00:10.7]} 55... c3 {[%clk 0:00:07.8]} 56. Rd6+ {[%clk 0:00:10.4]} 56... Ke3
{[%clk 0:00:06.7]} 57. Rc6 {[%clk 0:00:10.5]} 57... Kd2 {[%clk 0:00:05.7]} 58.
a5 {[%clk 0:00:10.6]} 58... c2 {[%clk 0:00:05.9]} 59. a6 {[%clk 0:00:10.6]}
59... Rxg6 {[%clk 0:00:03.8]} 60. Rxg6 {[%clk 0:00:10.2]} 60... c1=Q {[%clk
0:00:04.1]} 61. Rd6+ {[%clk 0:00:10]} 61... Ke3 {[%clk 0:00:02.5]} 62. a7 {[%clk
0:00:09.8]} 62... Qa3 {[%clk 0:00:02.4]} 63. Ra6 {[%clk 0:00:09.6]} 63... Qd3+
{[%clk 0:00:02.1]} 64. Kb6 {[%clk 0:00:09.6]} 64... Qd6+ {[%clk 0:00:02.3]} 65.
Kb7 {[%clk 0:00:09.8]} 65... Qd7+ {[%clk 0:00:02.8]} 66. Kb8 {[%clk 0:00:09.1]}
66... Qd8+ {[%clk 0:00:03.1]} 67. Kb7 {[%clk 0:00:08.9]} 67... Qd7+ {[%clk
0:00:04]} 68. Kb6 {[%clk 0:00:09.1]} 68... Qd6+ {[%clk 0:00:04.3]} 69. Kb7
{[%clk 0:00:09.2]} 69... Qd7+ {[%clk 0:00:04.6]} 1/2-1/2

[Event "*** Titled Tuesday Blitz"]
[Site "Chess.com"]
[Date "2020.05.19"]
[Round "8"]
[White "Ranindu2003"]
[Black "garicradomir"]
[Result "1-0"]
[WhiteElo "2456"]
[BlackElo "2294"]
[TimeControl "180+1"]
[EndTime "13:38:21 PDT"]
[Termination "Ranindu2003 won on time"]

1. e4 {[%clk 0:03:00.2]} 1... c5 {[%clk 0:02:58]} 2. Nf3 {[%clk 0:03:00.1]} 2...
Nc6 {[%clk 0:02:57.9]} 3. Bb5 {[%clk 0:02:59.4]} 3... g6 {[%clk 0:02:57.9]} 4.
Bxc6 {[%clk 0:02:58.6]} 4... bxc6 {[%clk 0:02:58.8]} 5. O-O {[%clk 0:02:57.8]}
5... Bg7 {[%clk 0:02:58.6]} 6. Re1 {[%clk 0:02:58.4]} 6... Qc7 {[%clk
0:02:58.4]} 7. c3 {[%clk 0:02:58.6]} 7... d6 {[%clk 0:02:57.4]} 8. h3 {[%clk
0:02:58]} 8... Nf6 {[%clk 0:02:56.1]} 9. d4 {[%clk 0:02:55.5]} 9... cxd4 {[%clk
0:02:51.2]} 10. cxd4 {[%clk 0:02:56.4]} 10... O-O {[%clk 0:02:49.2]} 11. Nc3
{[%clk 0:02:55.2]} 11... Bd7 {[%clk 0:02:48.6]} 12. Bf4 {[%clk 0:02:47]} 12...
Qb7 {[%clk 0:02:44.4]} 13. Rb1 {[%clk 0:02:45.5]} 13... c5 {[%clk 0:02:34.3]}
14. d5 {[%clk 0:02:13.7]} 14... Rab8 {[%clk 0:02:25.5]} 15. e5 {[%clk
0:02:08.1]} 15... Nh5 {[%clk 0:02:24.9]} 16. Bh2 {[%clk 0:02:06.9]} 16... Bf5
{[%clk 0:02:22.1]} 17. Rc1 {[%clk 0:01:59]} 17... Bh6 {[%clk 0:02:21.7]} 18. g4
{[%clk 0:01:50]} 18... Bxc1 {[%clk 0:02:19.9]} 19. Qxc1 {[%clk 0:01:49.1]} 19...
Qxb2 {[%clk 0:02:19.1]} 20. gxf5 {[%clk 0:01:45.4]} 20... Qxc1 {[%clk
0:02:02.8]} 21. Rxc1 {[%clk 0:01:46.3]} 21... Rb6 {[%clk 0:02:02.5]} 22. f6
{[%clk 0:01:31.1]} 22... dxe5 {[%clk 0:01:55.4]} 23. fxe7 {[%clk 0:01:24.2]}
23... Re8 {[%clk 0:01:55.1]} 24. Bxe5 {[%clk 0:01:09.7]} 24... Rxe7 {[%clk
0:01:49.7]} 25. d6 {[%clk 0:01:09.6]} 25... Rxe5 {[%clk 0:01:39.7]} 26. Nxe5
{[%clk 0:01:10.5]} 26... Rxd6 {[%clk 0:01:40.2]} 27. Rd1 {[%clk 0:00:49]} 27...
Re6 {[%clk 0:01:37.8]} 28. Ng4 {[%clk 0:00:37.6]} 28... Nf4 {[%clk 0:01:35.4]}
29. Kh2 {[%clk 0:00:36.7]} 29... Ne2 {[%clk 0:01:20.5]} 30. Nd5 {[%clk
0:00:30.4]} 30... h5 {[%clk 0:01:16]} 31. Nge3 {[%clk 0:00:30.3]} 31... Ra6
{[%clk 0:01:12.3]} 32. Rd2 {[%clk 0:00:29.9]} 32... Nd4 {[%clk 0:01:11.8]} 33.
Kg2 {[%clk 0:00:21.1]} 33... Kg7 {[%clk 0:01:12.1]} 34. Nc4 {[%clk 0:00:21.1]}
34... Ra4 {[%clk 0:01:07]} 35. Nde3 {[%clk 0:00:21.1]} 35... f5 {[%clk 0:01:06]}
36. f4 {[%clk 0:00:17]} 36... Ne6 {[%clk 0:01:05]} 37. Kf3 {[%clk 0:00:15.2]}
37... Nd4+ {[%clk 0:01:03.2]} 38. Kg3 {[%clk 0:00:15.3]} 38... Rb4 {[%clk
0:01:03.8]} 39. Rb2 {[%clk 0:00:14.1]} 39... Ra4 {[%clk 0:00:56.5]} 40. Rb7+
{[%clk 0:00:13.1]} 40... Kh6 {[%clk 0:00:55.7]} 41. a3 {[%clk 0:00:12.9]} 41...
Ne2+ {[%clk 0:00:51.1]} 42. Kf3 {[%clk 0:00:09.8]} 42... Nd4+ {[%clk 0:00:50.7]}
43. Kf2 {[%clk 0:00:09.5]} 43... Ne6 {[%clk 0:00:49.1]} 44. Kg3 {[%clk
0:00:07.2]} 44... h4+ {[%clk 0:00:46.2]} 45. Kxh4 {[%clk 0:00:06.7]} 45... Nxf4
{[%clk 0:00:46.5]} 46. Kg3 {[%clk 0:00:07.3]} 46... Nh5+ {[%clk 0:00:34.6]} 47.
Kf3 {[%clk 0:00:07.4]} 47... f4 {[%clk 0:00:35.5]} 48. Ng4+ {[%clk 0:00:05.4]}
48... Kg5 {[%clk 0:00:35.9]} 49. Nce5 {[%clk 0:00:05.7]} 49... Rxa3+ {[%clk
0:00:34.8]} 50. Ke4 {[%clk 0:00:06.3]} 50... Rxh3 {[%clk 0:00:29.1]} 51. Rxa7
{[%clk 0:00:05.9]} 51... Ng3+ {[%clk 0:00:26.2]} 52. Kd5 {[%clk 0:00:05.3]}
52... Nf5 {[%clk 0:00:27.1]} 53. Ra6 {[%clk 0:00:05]} 53... f3 {[%clk
0:00:18.4]} 54. Rxg6+ {[%clk 0:00:04.2]} 54... Kf4 {[%clk 0:00:18.6]} 55. Rf6
{[%clk 0:00:04.7]} 55... Kg5 {[%clk 0:00:12.5]} 56. Rg6+ {[%clk 0:00:03.9]}
56... Kf4 {[%clk 0:00:12.5]} 57. Rf6 {[%clk 0:00:04.8]} 57... Kg5 {[%clk
0:00:09]} 58. Ke6 {[%clk 0:00:05.2]} 58... Nd4+ {[%clk 0:00:07.9]} 59. Kf7
{[%clk 0:00:05.6]} 59... Rh7+ {[%clk 0:00:06.9]} 60. Kg8 {[%clk 0:00:05.3]}
60... Rh4 {[%clk 0:00:07.7]} 61. Rg6+ {[%clk 0:00:05.3]} 61... Kf5 {[%clk
0:00:07.5]} 62. Rf6+ {[%clk 0:00:05.9]} 62... Kg5 {[%clk 0:00:05]} 63. Kg7
{[%clk 0:00:06.3]} 63... Rxg4 {[%clk 0:00:03.3]} 64. Rg6+ {[%clk 0:00:06.7]}
64... Kf4 {[%clk 0:00:02.9]} 65. Nxg4 {[%clk 0:00:07.3]} 65... Nf5+ {[%clk
0:00:02.5]} 66. Kf6 {[%clk 0:00:06.1]} 66... Nh4 {[%clk 0:00:03.4]} 67. Rg8
{[%clk 0:00:05.3]} 67... Nf5 {[%clk 0:00:02]} 68. Nf2 {[%clk 0:00:03.4]} 1-0

[Event "*** Titled Tuesday Blitz"]
[Site "Chess.com"]
[Date "2020.05.19"]
[Round "8"]
[White "ketster"]
[Black "IMRosen"]
[Result "1-0"]
[WhiteElo "2397"]
[BlackElo "2588"]
[TimeControl "180+1"]
[EndTime "13:38:22 PDT"]
[Termination "ketster won on time"]

1. d4 {[%clk 0:03:00.9]} 1... d5 {[%clk 0:02:53.1]} 2. c4 {[%clk 0:03:00.5]}
2... e6 {[%clk 0:02:46.9]} 3. Nc3 {[%clk 0:02:56.9]} 3... Nf6 {[%clk 0:02:42.2]}
4. cxd5 {[%clk 0:02:55.6]} 4... exd5 {[%clk 0:02:41.5]} 5. Bg5 {[%clk
0:02:54.6]} 5... c6 {[%clk 0:02:41.3]} 6. e3 {[%clk 0:02:53]} 6... Bd6 {[%clk
0:02:40.2]} 7. Qc2 {[%clk 0:02:51.1]} 7... O-O {[%clk 0:02:38.3]} 8. Bd3 {[%clk
0:02:51]} 8... h6 {[%clk 0:02:38.8]} 9. Bh4 {[%clk 0:02:45.8]} 9... Re8 {[%clk
0:02:38.3]} 10. Nge2 {[%clk 0:02:44.8]} 10... a5 {[%clk 0:02:38.9]} 11. Bg3
{[%clk 0:02:38.1]} 11... Na6 {[%clk 0:02:35]} 12. a3 {[%clk 0:02:36.9]} 12...
Nc7 {[%clk 0:02:33.8]} 13. O-O {[%clk 0:02:34.6]} 13... Ne6 {[%clk 0:02:29.2]}
14. f3 {[%clk 0:02:27.9]} 14... Bxg3 {[%clk 0:02:07.2]} 15. Nxg3 {[%clk
0:02:26.3]} 15... c5 {[%clk 0:01:59.9]} 16. Bb5 {[%clk 0:02:12.6]} 16... Bd7
{[%clk 0:01:59.4]} 17. Bxd7 {[%clk 0:02:09.3]} 17... Qxd7 {[%clk 0:01:58.9]} 18.
dxc5 {[%clk 0:02:01.8]} 18... Nxc5 {[%clk 0:01:59]} 19. Qf2 {[%clk 0:01:58.2]}
19... Re6 {[%clk 0:01:28.5]} 20. Rad1 {[%clk 0:01:45.8]} 20... Rae8 {[%clk
0:01:27.6]} 21. Rfe1 {[%clk 0:01:40.2]} 21... d4 {[%clk 0:01:07.4]} 22. e4
{[%clk 0:01:20]} 22... Nb3 {[%clk 0:00:55.2]} 23. Nf5 {[%clk 0:01:15.2]} 23...
Rd8 {[%clk 0:00:35.7]} 24. Qg3 {[%clk 0:00:57.6]} 24... Ne8 {[%clk 0:00:31.2]}
25. Nd5 {[%clk 0:00:53.7]} 25... b5 {[%clk 0:00:18]} 26. Nf4 {[%clk 0:00:44.8]}
26... Rf6 {[%clk 0:00:13.7]} 27. Nh5 {[%clk 0:00:35.7]} 27... Rg6 {[%clk
0:00:13.8]} 28. Qf2 {[%clk 0:00:33.7]} 28... d3 {[%clk 0:00:09]} 29. Nf4 {[%clk
0:00:33]} 29... d2 {[%clk 0:00:08]} 30. Re3 {[%clk 0:00:28.5]} 30... a4 {[%clk
0:00:02.8]} 31. Nxg6 {[%clk 0:00:27.4]} 31... fxg6 {[%clk 0:00:03.7]} 32. Ng3
{[%clk 0:00:24.8]} 32... Nc7 {[%clk 0:00:02.9]} 33. Nf1 {[%clk 0:00:23.4]} 33...
Ne6 {[%clk 0:00:02.3]} 34. Re2 {[%clk 0:00:15.6]} 34... Nf4 {[%clk 0:00:02.3]}
35. Rexd2 {[%clk 0:00:14.8]} 35... Nxd2 {[%clk 0:00:02.3]} 36. Rxd2 {[%clk
0:00:15]} 36... Qe7 {[%clk 0:00:02.4]} 37. Rxd8+ {[%clk 0:00:12]} 37... Qxd8
{[%clk 0:00:03.3]} 38. Qd2 {[%clk 0:00:12.1]} 38... Qg5 {[%clk 0:00:03.4]} 39.
Kh1 {[%clk 0:00:10.6]} 39... Qf6 {[%clk 0:00:02.8]} 40. Ne3 {[%clk 0:00:08.5]}
40... Kh7 {[%clk 0:00:02.5]} 41. Nd5 {[%clk 0:00:08.6]} 41... Nxd5 {[%clk
0:00:02.3]} 42. exd5 {[%clk 0:00:08.7]} 42... Qd6 {[%clk 0:00:02.9]} 43. h3
{[%clk 0:00:08.9]} 43... Kg8 {[%clk 0:00:02.6]} 44. Qd4 {[%clk 0:00:09]} 44...
Kf7 {[%clk 0:00:02.5]} 45. Qe4 {[%clk 0:00:07.7]} 45... Kf6 {[%clk 0:00:01.4]}
46. Qd4+ {[%clk 0:00:07.3]} 46... Qe5 {[%clk 0:00:02]} 47. Qd2 {[%clk
0:00:06.2]} 47... Ke7 {[%clk 0:00:02.6]} 48. Qc2 {[%clk 0:00:04.3]} 48... Qd6
{[%clk 0:00:02]} 49. Qd3 {[%clk 0:00:04]} 49... Qc5 {[%clk 0:00:01.5]} 50. Qxg6
{[%clk 0:00:03.4]} 50... Qc1+ {[%clk 0:00:01.5]} 51. Kh2 {[%clk 0:00:03.6]}
51... Qxb2 {[%clk 0:00:01.1]} 52. Qe4+ {[%clk 0:00:03]} 52... Kd6 {[%clk
0:00:01.3]} 53. Qe6+ {[%clk 0:00:03.3]} 53... Kc5 {[%clk 0:00:01.8]} 54. d6
{[%clk 0:00:03.5]} 54... Qd4 {[%clk 0:00:01.8]} 55. d7 {[%clk 0:00:03.8]} 55...
Qf4+ {[%clk 0:00:02.5]} 56. Kh1 {[%clk 0:00:02.7]} 56... Qc1+ {[%clk 0:00:03]}
57. Kh2 {[%clk 0:00:02.9]} 57... Qf4+ {[%clk 0:00:03.7]} 58. Kg1 {[%clk
0:00:03.1]} 58... Qc1+ {[%clk 0:00:04.2]} 59. Kf2 {[%clk 0:00:03.4]} 59... Qd2+
{[%clk 0:00:04.6]} 60. Kg3 {[%clk 0:00:03.8]} 60... Qg5+ {[%clk 0:00:05.3]} 61.
Qg4 {[%clk 0:00:04]} 61... Qe5+ {[%clk 0:00:05.6]} 62. Kf2 {[%clk 0:00:04.2]}
62... Qb2+ {[%clk 0:00:04.5]} 63. Kg1 {[%clk 0:00:04.4]} 63... Qc1+ {[%clk
0:00:04.2]} 64. Kh2 {[%clk 0:00:04.6]} 64... Qd2 {[%clk 0:00:03.8]} 65. Qf5+
{[%clk 0:00:04.3]} 65... Kc6 {[%clk 0:00:03.2]} 66. Qe6+ {[%clk 0:00:04.3]}
66... Kc7 {[%clk 0:00:03.2]} 67. Qe5+ {[%clk 0:00:03]} 67... Kc6 {[%clk
0:00:01.5]} 68. Qe6+ {[%clk 0:00:02.8]} 68... Kc7 {[%clk 0:00:02.1]} 69. Qe5+
{[%clk 0:00:03]} 69... Kxd7 {[%clk 0:00:02.7]} 70. Qxb5+ {[%clk 0:00:02.8]}
70... Ke6 {[%clk 0:00:02.3]} 71. Qb6+ {[%clk 0:00:02.2]} 71... Kf7 {[%clk
0:00:01]} 72. Qa7+ {[%clk 0:00:01.7]} 1-0